[Event "Titled Tuesday Blitz October 18 Late 2022"]
[White "Marcolino, Daniel Mattos"]
[Black "Garrido, Denis"]
[WhiteFideId "2106841"]
[BlackFideId "601217"]
[WhiteElo "2044"]
[BlackElo "2214"]
[Result "1-0"]
[Round "05"]
[TimeControl "180+1"]
[Date "2022.10.19"]
[WhiteClock "0:00:02"]
[BlackClock "0:00:02"]

1. d4 {[%clk 0:03:00]}  Nf6 {[%clk 0:02:54]} 2. Nf3 {[%clk 0:03:00]}  c5 {[%clk 0:02:54]} 3. d5 {[%clk 0:02:53]}  d6 {[%clk 0:02:53]} 4. Nc3 {[%clk 0:02:54]}  g6 {[%clk 0:02:53]} 5. e4 {[%clk 0:02:54]}  Bg7 {[%clk 0:02:52]} 6. Be2 {[%clk 0:02:51]}  O-O {[%clk 0:02:52]} 7. O-O {[%clk 0:02:51]}  Na6 {[%clk 0:02:50]} 8. h3 {[%clk 0:02:44]}  Nc7 {[%clk 0:02:48]} 9. a4 {[%clk 0:02:43]}  a6 {[%clk 0:02:48]} 10. a5 {[%clk 0:02:33]}  Rb8 {[%clk 0:02:47]} 11. Nd2 {[%clk 0:02:31]}  Bd7 {[%clk 0:02:36]} 12. Nc4 {[%clk 0:02:23]}  Bb5 {[%clk 0:02:35]} 13. Bf4 {[%clk 0:02:23]}  Bxc4 {[%clk 0:02:30]} 14. Bxc4 {[%clk 0:02:24]}  Nd7 {[%clk 0:02:24]} 15. Qd2 {[%clk 0:02:16]}  b5 {[%clk 0:02:15]} 16. axb6 {[%clk 0:02:14]}  Nxb6 {[%clk 0:02:07]} 17. Be2 {[%clk 0:02:04]}  Qd7 {[%clk 0:01:29]} 18. Bh6 {[%clk 0:02:03]}  Bxh6 {[%clk 0:01:19]} 19. Qxh6 {[%clk 0:02:04]}  e5 {[%clk 0:01:10]} 20. Bxa6 {[%clk 0:01:54]}  Nxa6 {[%clk 0:01:07]} 21. Rxa6 {[%clk 0:01:55]}  f5 {[%clk 0:00:49]} 22. Rfa1 {[%clk 0:01:43]}  Rb7 {[%clk 0:00:44]} 23. Qd2 {[%clk 0:01:14]}  Nc4 {[%clk 0:00:36]} 24. Qg5 {[%clk 0:00:49]}  Nxb2 {[%clk 0:00:33]} 25. exf5 {[%clk 0:00:46]}  Rxf5 {[%clk 0:00:31]} 26. Ra8+ {[%clk 0:00:45]}  Kg7 {[%clk 0:00:31]} 27. Qh4 {[%clk 0:00:29]}  Rf4 {[%clk 0:00:22]} 28. Qg5 {[%clk 0:00:27]}  h6 {[%clk 0:00:19]} 29. Qd8 {[%clk 0:00:19]}  Nc4 {[%clk 0:00:15]} 30. Qxd7+ {[%clk 0:00:18]}  Rxd7 {[%clk 0:00:15]} 31. R8a7 {[%clk 0:00:17]}  Rff7 {[%clk 0:00:15]} 32. Rxd7 {[%clk 0:00:16]}  Rxd7 {[%clk 0:00:14]} 33. f3 {[%clk 0:00:16]}  Rb7 {[%clk 0:00:14]} 34. Ne4 {[%clk 0:00:16]}  Rb6 {[%clk 0:00:10]} 35. Ra7+ {[%clk 0:00:15]}  Kg8 {[%clk 0:00:10]} 36. Rd7 {[%clk 0:00:15]}  Kf8 {[%clk 0:00:06]} 37. c3 {[%clk 0:00:15]}  Ke8 {[%clk 0:00:06]} 38. Rh7 {[%clk 0:00:14]}  Rb2 {[%clk 0:00:06]} 39. Rxh6 {[%clk 0:00:12]}  Kf7 {[%clk 0:00:07]} 40. Rh7+ {[%clk 0:00:12]}  Kg8 {[%clk 0:00:07]} 41. Rd7 {[%clk 0:00:12]}  Ne3 {[%clk 0:00:05]} 42. Rxd6 {[%clk 0:00:12]}  Rxg2+ {[%clk 0:00:05]} 43. Kh1 {[%clk 0:00:12]}  Re2 {[%clk 0:00:03]} 44. Rxg6+ {[%clk 0:00:09]}  Kh7 {[%clk 0:00:02]} 45. Rg1 {[%clk 0:00:04]}  Nxd5 {[%clk 0:00:02]} 46. c4 {[%clk 0:00:03]}  Nf4 {[%clk 0:00:02]} 47. Ng5+ {[%clk 0:00:03]}  Kh6 {[%clk 0:00:02]} 48. h4 {[%clk 0:00:03]}  Kh5 {[%clk 0:00:02]} 49. Rg4 {[%clk 0:00:02]} 1-0


[Site "https://www.chess.com"]

[Event "Titled Tuesday Blitz October 18 Late 2022"]
[White "Martin Carmona, Gaston Manuel"]
[Black "Jimenez Fernandez, Rebeca"]
[WhiteFideId "22284567"]
[BlackFideId "32070934"]
[WhiteElo "2235"]
[BlackElo "1946"]
[Result "1-0"]
[Round "05"]
[TimeControl "180+1"]
[Date "2022.10.19"]
[WhiteClock "0:02:36"]
[BlackClock "0:02:26"]

1. d4 {[%clk 0:03:00]}  d5 {[%clk 0:02:58]} 2. c4 {[%clk 0:02:58]}  c6 {[%clk 0:02:58]} 3. Nc3 {[%clk 0:02:58]}  Nf6 {[%clk 0:02:59]} 4. Nf3 {[%clk 0:02:59]}  e6 {[%clk 0:02:58]} 5. e3 {[%clk 0:02:58]}  Be7 {[%clk 0:02:58]} 6. Bd3 {[%clk 0:02:57]}  dxc4 {[%clk 0:02:58]} 7. Bxc4 {[%clk 0:02:56]}  b5 {[%clk 0:02:59]} 8. Bd3 {[%clk 0:02:54]}  O-O {[%clk 0:02:59]} 9. e4 {[%clk 0:02:51]}  a6 {[%clk 0:02:59]} 10. e5 {[%clk 0:02:50]}  Nd5 {[%clk 0:02:56]} 11. h4 {[%clk 0:02:50]}  Bb7 {[%clk 0:02:52]} 12. Bxh7+ {[%clk 0:02:42]}  Kxh7 {[%clk 0:02:42]} 13. Ng5+ {[%clk 0:02:41]}  Kg6 {[%clk 0:02:38]} 14. h5+ {[%clk 0:02:36]}  Kh6 {[%clk 0:02:26]} 15. Nxf7+ {[%clk 0:02:36]} 1-0


[Site "https://www.chess.com"]

[Event "Titled Tuesday Blitz October 18 Late 2022"]
[White "Nakamura, Hikaru"]
[Black "Bok, Benjamin"]
[WhiteFideId "2016192"]
[BlackFideId "1017063"]
[WhiteElo "2909"]
[BlackElo "2658"]
[Result "1-0"]
[Round "05"]
[TimeControl "180+1"]
[Date "2022.10.18"]
[WhiteClock "0:00:35"]
[BlackClock "0:00:05"]

1. g4 {[%clk 0:03:00]}  d5 {[%clk 0:02:59]} 2. Bg2 {[%clk 0:03:01]}  e5 {[%clk 0:02:59]} 3. h3 {[%clk 0:03:00]}  c6 {[%clk 0:02:59]} 4. d3 {[%clk 0:03:00]}  Bd6 {[%clk 0:02:58]} 5. Nd2 {[%clk 0:02:55]}  h5 {[%clk 0:02:52]} 6. gxh5 {[%clk 0:02:52]}  Nf6 {[%clk 0:02:45]} 7. h6 {[%clk 0:02:51]}  Rxh6 {[%clk 0:02:39]} 8. e4 {[%clk 0:02:50]}  Be6 {[%clk 0:02:28]} 9. Ndf3 {[%clk 0:02:43]}  dxe4 {[%clk 0:02:14]} 10. dxe4 {[%clk 0:02:44]}  Rh8 {[%clk 0:02:09]} 11. Ng5 {[%clk 0:02:34]}  Qe7 {[%clk 0:02:03]} 12. Nxe6 {[%clk 0:02:33]}  Qxe6 {[%clk 0:02:03]} 13. h4 {[%clk 0:02:28]}  Nbd7 {[%clk 0:01:46]} 14. Bg5 {[%clk 0:02:23]}  O-O-O {[%clk 0:01:32]} 15. Bh3 {[%clk 0:02:16]}  Qe7 {[%clk 0:01:17]} 16. Ne2 {[%clk 0:02:14]}  Kb8 {[%clk 0:01:16]} 17. Ng3 {[%clk 0:02:14]}  Nc5 {[%clk 0:00:49]} 18. Qf3 {[%clk 0:01:36]}  Ne6 {[%clk 0:00:48]} 19. Nf5 {[%clk 0:01:36]}  Nd4 {[%clk 0:00:44]} 20. Nxd4 {[%clk 0:01:32]}  exd4 {[%clk 0:00:45]} 21. Bxf6 {[%clk 0:01:32]}  gxf6 {[%clk 0:00:39]} 22. Bf5 {[%clk 0:01:31]}  Bb4+ {[%clk 0:00:38]} 23. Kf1 {[%clk 0:01:26]}  Qe5 {[%clk 0:00:34]} 24. Rd1 {[%clk 0:01:24]}  d3 {[%clk 0:00:32]} 25. c3 {[%clk 0:01:23]}  Bc5 {[%clk 0:00:31]} 26. Rxd3 {[%clk 0:01:22]}  Rxd3 {[%clk 0:00:26]} 27. Qxd3 {[%clk 0:01:23]}  Rg8 {[%clk 0:00:27]} 28. Qf3 {[%clk 0:00:45]}  a6 {[%clk 0:00:21]} 29. h5 {[%clk 0:00:45]}  Qd6 {[%clk 0:00:20]} 30. Ke2 {[%clk 0:00:42]}  Ka7 {[%clk 0:00:17]} 31. h6 {[%clk 0:00:34]}  Rd8 {[%clk 0:00:17]} 32. h7 {[%clk 0:00:33]}  Qd2+ {[%clk 0:00:16]} 33. Kf1 {[%clk 0:00:34]}  Rh8 {[%clk 0:00:12]} 34. b4 {[%clk 0:00:34]}  Bb6 {[%clk 0:00:12]} 35. a4 {[%clk 0:00:35]}  a5 {[%clk 0:00:11]} 36. bxa5 {[%clk 0:00:35]}  Bxa5 {[%clk 0:00:09]} 37. Qe3+ {[%clk 0:00:34]}  Qxe3 {[%clk 0:00:09]} 38. fxe3 {[%clk 0:00:35]}  Bxc3 {[%clk 0:00:09]} 39. Rg1 {[%clk 0:00:35]}  b5 {[%clk 0:00:04]} 40. axb5 {[%clk 0:00:34]}  cxb5 {[%clk 0:00:04]} 41. Rg8 {[%clk 0:00:34]}  Rxh7 {[%clk 0:00:05]} 42. Bxh7 {[%clk 0:00:35]} 1-0


[Site "https://www.chess.com"]

[Event "Titled Tuesday Blitz October 18 Late 2022"]
[White "Noboa Silva, Kevin"]
[Black "Ozen, Batuhan"]
[WhiteFideId "3618471"]
[BlackFideId "6345123"]
[WhiteElo "2178"]
[BlackElo "2406"]
[Result "1-0"]
[Round "05"]
[TimeControl "180+1"]
[Date "2022.10.19"]
[WhiteClock "0:01:07"]
[BlackClock "0:00:02"]

1. Nf3 {[%clk 0:03:00]}  c5 {[%clk 0:02:53]} 2. e4 {[%clk 0:03:00]}  Nc6 {[%clk 0:02:52]} 3. c3 {[%clk 0:03:00]}  d5 {[%clk 0:02:45]} 4. exd5 {[%clk 0:03:01]}  Qxd5 {[%clk 0:02:45]} 5. d4 {[%clk 0:03:01]}  Nf6 {[%clk 0:02:44]} 6. Be3 {[%clk 0:03:00]}  cxd4 {[%clk 0:02:43]} 7. cxd4 {[%clk 0:03:00]}  e6 {[%clk 0:02:42]} 8. Nc3 {[%clk 0:03:00]}  Bb4 {[%clk 0:02:42]} 9. Bd3 {[%clk 0:02:59]}  O-O {[%clk 0:02:37]} 10. O-O {[%clk 0:02:59]}  Bxc3 {[%clk 0:02:33]} 11. bxc3 {[%clk 0:03:00]}  Qa5 {[%clk 0:02:22]} 12. c4 {[%clk 0:02:57]}  b6 {[%clk 0:02:13]} 13. Qe2 {[%clk 0:02:56]}  Bb7 {[%clk 0:02:08]} 14. Rac1 {[%clk 0:02:55]}  Rad8 {[%clk 0:02:05]} 15. Rfd1 {[%clk 0:02:54]}  Qh5 {[%clk 0:02:02]} 16. h3 {[%clk 0:02:49]}  h6 {[%clk 0:01:56]} 17. Bb1 {[%clk 0:02:49]}  e5 {[%clk 0:01:36]} 18. d5 {[%clk 0:02:47]}  e4 {[%clk 0:01:32]} 19. Nd4 {[%clk 0:02:41]}  Qxe2 {[%clk 0:01:15]} 20. Nxe2 {[%clk 0:02:42]}  Na5 {[%clk 0:01:09]} 21. Bd4 {[%clk 0:02:33]}  Ba6 {[%clk 0:01:05]} 22. Bxf6 {[%clk 0:02:32]}  gxf6 {[%clk 0:01:06]} 23. Ng3 {[%clk 0:02:32]}  Bxc4 {[%clk 0:00:55]} 24. d6 {[%clk 0:02:29]}  Be6 {[%clk 0:00:31]} 25. Bxe4 {[%clk 0:02:28]}  Bxa2 {[%clk 0:00:20]} 26. Nh5 {[%clk 0:02:24]}  Be6 {[%clk 0:00:20]} 27. Nxf6+ {[%clk 0:02:23]}  Kh8 {[%clk 0:00:19]} 28. Rc7 {[%clk 0:02:20]}  Nc4 {[%clk 0:00:18]} 29. d7 {[%clk 0:02:15]}  a5 {[%clk 0:00:17]} 30. Bd5 {[%clk 0:01:59]}  Ne5 {[%clk 0:00:13]} 31. Re1 {[%clk 0:01:50]}  Nxd7 {[%clk 0:00:11]} 32. Nxd7 {[%clk 0:01:43]}  Bxd7 {[%clk 0:00:10]} 33. Re7 {[%clk 0:01:41]}  Bf5 {[%clk 0:00:08]} 34. Bxf7 {[%clk 0:01:41]}  Rc8 {[%clk 0:00:08]} 35. Rb7 {[%clk 0:01:39]}  Rb8 {[%clk 0:00:08]} 36. Bd5 {[%clk 0:01:25]}  Rxb7 {[%clk 0:00:08]} 37. Rxb7 {[%clk 0:01:26]}  a4 {[%clk 0:00:07]} 38. Rxb6 {[%clk 0:01:25]}  Bc2 {[%clk 0:00:08]} 39. Ra6 {[%clk 0:01:24]}  Rb8 {[%clk 0:00:07]} 40. g4 {[%clk 0:01:22]}  Bb3 {[%clk 0:00:06]} 41. Bc6 {[%clk 0:01:18]}  Rb4 {[%clk 0:00:06]} 42. Kg2 {[%clk 0:01:17]}  Rc4 {[%clk 0:00:04]} 43. Kg3 {[%clk 0:01:11]}  Kg7 {[%clk 0:00:02]} 44. h4 {[%clk 0:01:09]}  Rc3+ {[%clk 0:00:02]} 45. f3 {[%clk 0:01:07]} 1-0


[Site "https://www.chess.com"]

[Event "Titled Tuesday Blitz October 18 Late 2022"]
[White "Ozer, Omer Faruk"]
[Black "Ferreira, Vitor Hugo Vieira"]
[WhiteFideId "6354564"]
[BlackFideId "2119765"]
[WhiteElo "2260"]
[BlackElo "2168"]
[Result "1-0"]
[Round "05"]
[TimeControl "180+1"]
[Date "2022.10.19"]
[WhiteClock "0:01:05"]
[BlackClock "0:00:07"]

1. d4 {[%clk 0:02:45]}  d5 {[%clk 0:02:59]} 2. Nc3 {[%clk 0:02:44]}  Nf6 {[%clk 0:02:59]} 3. Bg5 {[%clk 0:02:38]}  e6 {[%clk 0:02:57]} 4. e4 {[%clk 0:02:38]}  Be7 {[%clk 0:02:56]} 5. e5 {[%clk 0:02:37]}  Nfd7 {[%clk 0:02:56]} 6. h4 {[%clk 0:02:38]}  a6 {[%clk 0:02:55]} 7. f4 {[%clk 0:02:36]}  c5 {[%clk 0:02:53]} 8. Nf3 {[%clk 0:02:34]}  Nc6 {[%clk 0:02:53]} 9. Qd2 {[%clk 0:02:31]}  b5 {[%clk 0:02:51]} 10. dxc5 {[%clk 0:02:30]}  Nxc5 {[%clk 0:02:49]} 11. Bxe7 {[%clk 0:02:29]}  Qxe7 {[%clk 0:02:48]} 12. Bd3 {[%clk 0:02:30]}  Bb7 {[%clk 0:02:33]} 13. Ne2 {[%clk 0:02:30]}  O-O {[%clk 0:02:04]} 14. O-O-O {[%clk 0:02:22]}  Nxd3+ {[%clk 0:01:51]} 15. cxd3 {[%clk 0:02:20]}  f6 {[%clk 0:01:47]} 16. Kb1 {[%clk 0:02:17]}  fxe5 {[%clk 0:01:45]} 17. fxe5 {[%clk 0:02:14]}  Qb4 {[%clk 0:00:57]} 18. Qxb4 {[%clk 0:02:12]}  Nxb4 {[%clk 0:00:56]} 19. Ned4 {[%clk 0:02:12]}  Rae8 {[%clk 0:00:52]} 20. Ng5 {[%clk 0:02:01]}  Nc6 {[%clk 0:00:30]} 21. Nxc6 {[%clk 0:01:57]}  Bxc6 {[%clk 0:00:30]} 22. Rc1 {[%clk 0:01:57]}  Bd7 {[%clk 0:00:29]} 23. Rc7 {[%clk 0:01:57]}  Bc8 {[%clk 0:00:28]} 24. Rhc1 {[%clk 0:01:53]}  h6 {[%clk 0:00:28]} 25. Nf3 {[%clk 0:01:52]}  a5 {[%clk 0:00:27]} 26. Nd4 {[%clk 0:01:36]}  b4 {[%clk 0:00:27]} 27. R1c6 {[%clk 0:01:35]}  Rf1+ {[%clk 0:00:17]} 28. Kc2 {[%clk 0:01:34]}  Rff8 {[%clk 0:00:14]} 29. Nb5 {[%clk 0:01:29]}  Rd8 {[%clk 0:00:12]} 30. Re7 {[%clk 0:01:22]}  Bd7 {[%clk 0:00:11]} 31. Rc7 {[%clk 0:01:22]}  Rf7 {[%clk 0:00:11]} 32. Rxf7 {[%clk 0:01:19]}  Kxf7 {[%clk 0:00:10]} 33. Nd4 {[%clk 0:01:17]}  Kg6 {[%clk 0:00:10]} 34. g4 {[%clk 0:01:12]}  h5 {[%clk 0:00:10]} 35. g5 {[%clk 0:01:11]}  Bc8 {[%clk 0:00:10]} 36. Kd2 {[%clk 0:01:11]}  Rf8 {[%clk 0:00:11]} 37. Ke3 {[%clk 0:01:10]}  Ba6 {[%clk 0:00:08]} 38. Nxe6 {[%clk 0:01:06]}  Rf1 {[%clk 0:00:08]} 39. Rxg7+ {[%clk 0:01:06]}  Kf5 {[%clk 0:00:08]} 40. Rf7+ {[%clk 0:01:06]}  Kxe5 {[%clk 0:00:07]} 41. Rxf1 {[%clk 0:01:07]}  Kxe6 {[%clk 0:00:07]} 42. Rf6+ {[%clk 0:01:06]}  Ke7 {[%clk 0:00:07]} 43. Rxa6 {[%clk 0:01:05]} 1-0


[Site "https://www.chess.com"]

[Event "Titled Tuesday Blitz October 18 Late 2022"]
[White "P., Komal Kishore"]
[Black "Hemam, Moulaye Brahim"]
[WhiteFideId "5016703"]
[BlackFideId "19600054"]
[WhiteElo "2101"]
[BlackElo "2088"]
[Result "1/2-1/2"]
[Round "05"]
[TimeControl "180+1"]
[Date "2022.10.19"]
[WhiteClock "0:00:59"]
[BlackClock "0:01:40"]

1. e4 {[%clk 0:03:00]}  c5 {[%clk 0:02:58]} 2. Nf3 {[%clk 0:02:59]}  Nc6 {[%clk 0:02:59]} 3. Bb5 {[%clk 0:03:00]}  g6 {[%clk 0:02:56]} 4. O-O {[%clk 0:02:57]}  Bg7 {[%clk 0:02:56]} 5. c3 {[%clk 0:02:57]}  Nf6 {[%clk 0:02:55]} 6. e5 {[%clk 0:02:57]}  Nd5 {[%clk 0:02:54]} 7. d4 {[%clk 0:02:57]}  cxd4 {[%clk 0:02:52]} 8. cxd4 {[%clk 0:02:58]}  Nc7 {[%clk 0:02:52]} 9. Bd3 {[%clk 0:02:54]}  d6 {[%clk 0:02:51]} 10. exd6 {[%clk 0:02:53]}  Qxd6 {[%clk 0:02:50]} 11. Be3 {[%clk 0:02:51]}  Bg4 {[%clk 0:02:47]} 12. Nbd2 {[%clk 0:02:45]}  O-O {[%clk 0:02:46]} 13. Rc1 {[%clk 0:02:37]}  Rad8 {[%clk 0:02:44]} 14. h3 {[%clk 0:02:36]}  Bxf3 {[%clk 0:02:43]} 15. Nxf3 {[%clk 0:02:37]}  Nxd4 {[%clk 0:02:23]} 16. Nxd4 {[%clk 0:02:36]}  Bxd4 {[%clk 0:02:23]} 17. Bxd4 {[%clk 0:02:36]}  Qxd4 {[%clk 0:02:23]} 18. Rxc7 {[%clk 0:02:36]}  Qxd3 {[%clk 0:02:23]} 19. Qxd3 {[%clk 0:02:35]}  Rxd3 {[%clk 0:02:23]} 20. Rxb7 {[%clk 0:02:35]}  Rd2 {[%clk 0:02:21]} 21. Rxe7 {[%clk 0:02:31]}  Rxb2 {[%clk 0:02:21]} 22. Rxa7 {[%clk 0:02:31]}  Re8 {[%clk 0:02:18]} 23. a4 {[%clk 0:02:11]}  Ree2 {[%clk 0:02:14]} 24. a5 {[%clk 0:02:10]}  Ra2 {[%clk 0:02:12]} 25. a6 {[%clk 0:02:09]}  Kg7 {[%clk 0:02:11]} 26. Ra8 {[%clk 0:02:08]}  Re6 {[%clk 0:02:09]} 27. a7 {[%clk 0:01:44]}  Rea6 {[%clk 0:02:01]} 28. g3 {[%clk 0:01:31]}  Rxa7 {[%clk 0:02:00]} 29. Rxa7 {[%clk 0:01:30]}  Rxa7 {[%clk 0:02:01]} 30. Kg2 {[%clk 0:01:31]}  h5 {[%clk 0:02:01]} 31. Rc1 {[%clk 0:01:27]}  g5 {[%clk 0:01:59]} 32. Rc6 {[%clk 0:01:24]}  f6 {[%clk 0:01:58]} 33. g4 {[%clk 0:01:23]}  hxg4 {[%clk 0:01:53]} 34. hxg4 {[%clk 0:01:23]}  Kg6 {[%clk 0:01:53]} 35. Kg3 {[%clk 0:01:20]}  Ra1 {[%clk 0:01:52]} 36. Rb6 {[%clk 0:01:18]}  Rg1+ {[%clk 0:01:51]} 37. Kf3 {[%clk 0:01:17]}  Rh1 {[%clk 0:01:49]} 38. Kg2 {[%clk 0:01:14]}  Rh4 {[%clk 0:01:46]} 39. Kg3 {[%clk 0:01:12]}  Rh1 {[%clk 0:01:44]} 40. Rb7 {[%clk 0:01:08]}  Rg1+ {[%clk 0:01:42]} 41. Kf3 {[%clk 0:01:07]}  Rc1 {[%clk 0:01:40]} 42. Rb6 {[%clk 0:00:59]} 1/2-1/2


[Site "https://www.chess.com"]

[Event "Titled Tuesday Blitz October 18 Late 2022"]
[White "Pavlidou, Ekaterini"]
[Black "Gonzalez Vega, Alejandro"]
[WhiteFideId "4213262"]
[BlackFideId "3510042"]
[WhiteElo "2125"]
[BlackElo "2261"]
[Result "1-0"]
[Round "05"]
[TimeControl "180+1"]
[Date "2022.10.19"]
[WhiteClock "0:00:49"]
[BlackClock "0:00:01"]

1. d4 {[%clk 0:03:00]}  d5 {[%clk 0:02:59]} 2. c4 {[%clk 0:02:59]}  e6 {[%clk 0:02:58]} 3. Nc3 {[%clk 0:02:59]}  Nf6 {[%clk 0:02:58]} 4. cxd5 {[%clk 0:02:58]}  exd5 {[%clk 0:02:58]} 5. Bg5 {[%clk 0:02:58]}  Nbd7 {[%clk 0:02:58]} 6. e3 {[%clk 0:02:58]}  c6 {[%clk 0:02:58]} 7. Bd3 {[%clk 0:02:58]}  Be7 {[%clk 0:02:58]} 8. Nge2 {[%clk 0:02:57]}  O-O {[%clk 0:02:58]} 9. Qc2 {[%clk 0:02:58]}  Re8 {[%clk 0:02:58]} 10. f3 {[%clk 0:02:56]}  Nf8 {[%clk 0:02:58]} 11. O-O-O {[%clk 0:02:55]}  Be6 {[%clk 0:02:48]} 12. f4 {[%clk 0:02:52]}  Rc8 {[%clk 0:02:46]} 13. h3 {[%clk 0:02:50]}  c5 {[%clk 0:02:46]} 14. f5 {[%clk 0:02:49]}  Bd7 {[%clk 0:02:45]} 15. dxc5 {[%clk 0:02:44]}  Rxc5 {[%clk 0:02:39]} 16. g4 {[%clk 0:02:43]}  b5 {[%clk 0:02:21]} 17. a3 {[%clk 0:02:42]}  a5 {[%clk 0:02:20]} 18. b4 {[%clk 0:02:42]}  axb4 {[%clk 0:02:19]} 19. axb4 {[%clk 0:02:41]}  Rc8 {[%clk 0:02:09]} 20. Qb3 {[%clk 0:02:34]}  h6 {[%clk 0:01:54]} 21. Bf4 {[%clk 0:02:33]}  Qb6 {[%clk 0:01:36]} 22. Kb1 {[%clk 0:02:31]}  Rc4 {[%clk 0:01:16]} 23. Bxc4 {[%clk 0:02:27]}  bxc4 {[%clk 0:01:16]} 24. Qb2 {[%clk 0:02:17]}  Bxb4 {[%clk 0:01:02]} 25. Na2 {[%clk 0:02:17]}  Bc5 {[%clk 0:00:49]} 26. Qxb6 {[%clk 0:02:15]}  Bxb6 {[%clk 0:00:50]} 27. Nd4 {[%clk 0:02:12]}  Ne4 {[%clk 0:00:44]} 28. Rh2 {[%clk 0:02:09]}  Ba4 {[%clk 0:00:41]} 29. Rc1 {[%clk 0:02:03]}  Ba5 {[%clk 0:00:35]} 30. Rb2 {[%clk 0:02:01]}  Nd2+ {[%clk 0:00:33]} 31. Ka1 {[%clk 0:01:56]}  Ra8 {[%clk 0:00:26]} 32. Rb8 {[%clk 0:01:52]}  Rxb8 {[%clk 0:00:24]} 33. Bxb8 {[%clk 0:01:51]}  Nd7 {[%clk 0:00:20]} 34. Bd6 {[%clk 0:01:49]}  Ne4 {[%clk 0:00:14]} 35. Bb4 {[%clk 0:01:48]}  Bb6 {[%clk 0:00:13]} 36. Nc3 {[%clk 0:01:44]}  Bxd4 {[%clk 0:00:11]} 37. exd4 {[%clk 0:01:44]}  Bc6 {[%clk 0:00:12]} 38. Nxe4 {[%clk 0:01:42]}  dxe4 {[%clk 0:00:12]} 39. Rxc4 {[%clk 0:01:42]}  Bd5 {[%clk 0:00:11]} 40. Rc8+ {[%clk 0:01:42]}  Kh7 {[%clk 0:00:11]} 41. Bd2 {[%clk 0:01:37]}  Nf6 {[%clk 0:00:09]} 42. Be3 {[%clk 0:01:36]}  g6 {[%clk 0:00:08]} 43. fxg6+ {[%clk 0:01:34]}  Kxg6 {[%clk 0:00:08]} 44. Rd8 {[%clk 0:01:31]}  h5 {[%clk 0:00:07]} 45. Rd6 {[%clk 0:01:29]}  hxg4 {[%clk 0:00:07]} 46. hxg4 {[%clk 0:01:30]}  Be6 {[%clk 0:00:06]} 47. g5 {[%clk 0:01:28]}  Nd5 {[%clk 0:00:06]} 48. Bd2 {[%clk 0:01:22]}  e3 {[%clk 0:00:06]} 49. Be1 {[%clk 0:01:23]}  Kf5 {[%clk 0:00:06]} 50. Kb2 {[%clk 0:01:23]}  Kxg5 {[%clk 0:00:06]} 51. Kc2 {[%clk 0:01:23]}  Kf5 {[%clk 0:00:07]} 52. Kd3 {[%clk 0:01:22]}  Kf4 {[%clk 0:00:07]} 53. Ra6 {[%clk 0:01:07]}  Kf3 {[%clk 0:00:07]} 54. Ra3 {[%clk 0:01:05]}  Bf5+ {[%clk 0:00:07]} 55. Kc4 {[%clk 0:01:04]}  Be4 {[%clk 0:00:07]} 56. Bd2 {[%clk 0:01:03]}  f5 {[%clk 0:00:05]} 57. Bxe3 {[%clk 0:01:01]}  Nxe3+ {[%clk 0:00:05]} 58. Kc5 {[%clk 0:01:01]}  Ke2 {[%clk 0:00:06]} 59. Kd6 {[%clk 0:01:00]}  f4 {[%clk 0:00:06]} 60. Ke5 {[%clk 0:01:00]}  Bg2 {[%clk 0:00:05]} 61. Kxf4 {[%clk 0:00:59]}  Nd5+ {[%clk 0:00:02]} 62. Ke5 {[%clk 0:00:59]}  Ne3 {[%clk 0:00:03]} 63. Ra2+ {[%clk 0:00:57]}  Kf3 {[%clk 0:00:03]} 64. Ra3 {[%clk 0:00:56]}  Ke2 {[%clk 0:00:02]} 65. Kf4 {[%clk 0:00:52]}  Bd5 {[%clk 0:00:01]} 66. Rxe3+ {[%clk 0:00:51]}  Kd2 {[%clk 0:00:01]} 67. Rg3 {[%clk 0:00:49]} 1-0


[Site "https://www.chess.com"]

[Event "Titled Tuesday Blitz October 18 Late 2022"]
[White "Petrova, Irina"]
[Black "Yuan, Qingyu"]
[WhiteFideId "14124122"]
[BlackFideId "8609772"]
[WhiteElo "2023"]
[BlackElo "2359"]
[Result "0-1"]
[Round "05"]
[TimeControl "180+1"]
[Date "2022.10.18"]
[WhiteClock "0:00:13"]
[BlackClock "0:00:55"]

1. e4 {[%clk 0:03:00]}  c6 {[%clk 0:02:59]} 2. d4 {[%clk 0:02:59]}  d5 {[%clk 0:03:00]} 3. Nc3 {[%clk 0:02:58]}  dxe4 {[%clk 0:03:01]} 4. Nxe4 {[%clk 0:02:59]}  Nf6 {[%clk 0:03:01]} 5. Nxf6+ {[%clk 0:03:00]}  exf6 {[%clk 0:03:02]} 6. Be3 {[%clk 0:02:59]}  Bd6 {[%clk 0:02:58]} 7. Bd3 {[%clk 0:02:59]}  O-O {[%clk 0:02:58]} 8. Ne2 {[%clk 0:02:58]}  Re8 {[%clk 0:02:57]} 9. O-O {[%clk 0:02:56]}  Nd7 {[%clk 0:02:56]} 10. Qd2 {[%clk 0:02:55]}  Nf8 {[%clk 0:02:54]} 11. Bf4 {[%clk 0:02:49]}  g6 {[%clk 0:02:35]} 12. c3 {[%clk 0:02:25]}  Bg4 {[%clk 0:02:16]} 13. Rfe1 {[%clk 0:02:18]}  Bxe2 {[%clk 0:02:09]} 14. Rxe2 {[%clk 0:02:11]}  Rxe2 {[%clk 0:02:05]} 15. Bxe2 {[%clk 0:02:12]}  Ne6 {[%clk 0:02:05]} 16. Bxd6 {[%clk 0:02:11]}  Qxd6 {[%clk 0:02:06]} 17. Re1 {[%clk 0:02:09]}  Re8 {[%clk 0:01:56]} 18. Bc4 {[%clk 0:02:02]}  Nc7 {[%clk 0:01:54]} 19. Rxe8+ {[%clk 0:02:00]}  Nxe8 {[%clk 0:01:55]} 20. h3 {[%clk 0:01:59]}  f5 {[%clk 0:01:50]} 21. Qe3 {[%clk 0:01:57]}  Nf6 {[%clk 0:01:49]} 22. Qe5 {[%clk 0:01:35]}  Qxe5 {[%clk 0:01:44]} 23. dxe5 {[%clk 0:01:36]}  Ne4 {[%clk 0:01:45]} 24. f3 {[%clk 0:01:31]}  Nc5 {[%clk 0:01:45]} 25. b3 {[%clk 0:01:19]}  b5 {[%clk 0:01:37]} 26. Be2 {[%clk 0:01:19]}  f4 {[%clk 0:01:34]} 27. g3 {[%clk 0:01:10]}  g5 {[%clk 0:01:34]} 28. h4 {[%clk 0:01:09]}  h6 {[%clk 0:01:34]} 29. hxg5 {[%clk 0:01:09]}  hxg5 {[%clk 0:01:34]} 30. gxf4 {[%clk 0:01:08]}  gxf4 {[%clk 0:01:34]} 31. Kg2 {[%clk 0:01:02]}  Nd7 {[%clk 0:01:31]} 32. Bd3 {[%clk 0:01:01]}  Nxe5 {[%clk 0:01:30]} 33. Be4 {[%clk 0:01:01]}  Kg7 {[%clk 0:01:27]} 34. Kf2 {[%clk 0:00:56]}  Kf6 {[%clk 0:01:24]} 35. Ke2 {[%clk 0:00:56]}  Kg5 {[%clk 0:01:19]} 36. Kf2 {[%clk 0:00:53]}  Kh4 {[%clk 0:01:19]} 37. Bf5 {[%clk 0:00:49]}  Kg5 {[%clk 0:01:16]} 38. Be4 {[%clk 0:00:49]}  Kf6 {[%clk 0:01:15]} 39. Kg2 {[%clk 0:00:47]}  Ke6 {[%clk 0:01:16]} 40. Kf2 {[%clk 0:00:47]}  a5 {[%clk 0:01:13]} 41. Ke2 {[%clk 0:00:46]}  b4 {[%clk 0:01:12]} 42. cxb4 {[%clk 0:00:46]}  axb4 {[%clk 0:01:12]} 43. Bc2 {[%clk 0:00:40]}  Kd6 {[%clk 0:01:12]} 44. Be4 {[%clk 0:00:38]}  Kc5 {[%clk 0:01:12]} 45. Kd2 {[%clk 0:00:26]}  Kd4 {[%clk 0:01:07]} 46. Kc2 {[%clk 0:00:13]}  Ke3 {[%clk 0:00:58]} 47. Kb2 {[%clk 0:00:14]}  c5 {[%clk 0:00:55]} 48. a4 {[%clk 0:00:12]}  bxa3+ {[%clk 0:00:55]} 49. Kxa3 {[%clk 0:00:13]}  Nxf3 {[%clk 0:00:56]} 50. Ka4 {[%clk 0:00:13]}  Kxe4 {[%clk 0:00:55]} 0-1


[Site "https://www.chess.com"]